[Event "European Women-ch 2023"]
[Site "Petrovac"]
[Date "2023.03.19"]
[Round "2.5"]
[White "Socko, Monika"]
[Black "Urh, Zala"]
[Result "1-0"]
[ECO "D27"]
[WhiteElo "2432"]
[BlackElo "2294"]
[Annotator "TA"]
[PlyCount "73"]
[EventDate "2023.03.15"]
[EventType "swiss"]
[EventCountry "MNE"]
[SourceTitle "playchess.com"]
[Source "ChessBase"]
[SourceQuality "1"]
[TimeControl "40/5400+30:1800+30"]

{[%evp 22,73,14,0,0,0,0,0,0,0,0,0,0,0,0,0,0,0,0,0,0,3,16,16,16,13,10,13,48,41,44,41,108,115,109,110,167,113,149,27,652,524,912,904,889,879,435,6235,29989,29983,29991,29992,29994,29995]} 1. d4 {[%emt 0:00:02]} d5 {[%emt 0:00:08]} 2. c4 {[%emt 0:00:07]} e6 {[%emt 0:00:05]} 3. Nc3 {[%emt 0:01:57]} Nf6 {[%emt 0:00:23]} 4. Nf3 {[%emt 0:00:31]} dxc4 {[%emt 0:00:33]} 5. e3 {[%emt 0:02:20]} a6 {[%emt 0:00:39]} 6. a4 {[%emt 0:01:28]} c5 {[%emt 0:00:34]} 7. Bxc4 {[%emt 0:00:15]} Be7 {[%emt 0:00:34]} 8. O-O {[%emt 0:00:57]} cxd4 {[%emt 0:00:18]} 9. exd4 {[%emt 0:00:12]} Nc6 {[%emt 0:00:46]} 10. Re1 {[%emt 0:05:36]} O-O {[%emt 0:02:12]} 11. Bg5 {[%emt 0:01:08] 11.Bf4 injects fresh life into this line.} h6 {[%emt 0:07:53]} 12. Bh4 {[%emt 0:04:25]} Nb4 {[%emt 0:02:38] [#] D27: Queen's Gambit Accepted: Classical main line: 7 e4!? and 7 a4.} 13. Qb3 $146 {[%emt 0:06:22]} ({Predecessor:} 13. Ne5 Bd7 14. Qb3 Nc6 15. Qxb7 Na5 16. Qf3 Nxc4 17. Nxc4 Rc8 18. Ne5 Be8 19. Rad1 Nd5 20. Bxe7 Nxe7 {½-½ Xiong,J (2709)-Maghsoodloo,P (2698) Junior Speed Final blitz 2021 (2.11)}) 13... Nc6 $1 {[%emt 0:14:52]} 14. Rad1 {[%emt 0:07:46]} Na5 {[%emt 0:03:15] The position is equal.} 15. Qa2 {[%emt 0:00:04]} Nxc4 {[%emt 0:00:19]} 16. Qxc4 {[%emt 0:00:02]} Nd5 {[%emt 0:17:03]} 17. Bxe7 {[%emt 0:12:35]} Nxe7 {[%emt 0:00:13]} 18. Ne5 {[%emt 0:00:08]} b6 {[%emt 0:09:48]} 19. d5 {[%emt 0:02:41]} exd5 {[%emt 0:01:10]} 20. Nxd5 {[%emt 0:04:05]} Nxd5 {[%emt 0:01:47]} 21. Rxd5 {[%emt 0:00:27]} Qf6 {[%emt 0:03:10]} 22. Qd4 {[%emt 0:08:55]} Bb7 {[%emt 0:07:19]} 23. Rd6 {[%emt 0:01:52]} Qg5 {[%emt 0:00:29][%csl Gb7][%cal Rg5g2] [#]} 24. f3 {[%emt 0:02:32] Active counter play!} (24. Rxb6 $2 Qxg2#) (24. Qg4 {simplifies} Qxg4 25. Nxg4 b5 26. axb5 axb5 27. Ne3) 24... Rac8 {[%emt 0:04:58]} 25. Rxb6 {[%emt 0:10:03]} Rc2 {[%emt 0:01:10][%csl Gc2][%cal Rg5g2]} 26. Ng4 {[%emt 0:06:45]} (26. Rxb7 $2 Qxg2#) 26... Rd8 {[%emt 0:09:21] [#]} (26... Bc6 $14) 27. h4 $1 $16 {[%emt 0:01:46]} Rxd4 {[%emt 0:10:12]} (27... Qd2 $2 28. Qxd2 Rdxd2 29. Rxb7 $18) 28. hxg5 {[%emt 0:00:06]} (28. Re8+ {with more complications.} Kh7 29. hxg5 Bc8 30. g6+) 28... h5 {[%emt 0:01:03]} (28... Bc8 $16) 29. Re8+ {[%emt 0:12:14]} Kh7 {[%emt 0:00:05]} 30. Ne5 {[%emt 0:00:13]} ({Not} 30. Rxb7 hxg4 31. fxg4 (31. Rxf7 g3 $17) 31... Rxg4 $17) (30. Ne3 $16 Rc7 31. b3) 30... Rd1+ $2 {[%emt 0:01:48][%mdl 8192] A mistake that costs the game.} (30... f6 $1 $11 {and Black has nothing to worry.}) 31. Kh2 $18 {[%emt 0:00:05]} Rdd2 {[%emt 0:00:35]} 32. Rxb7 {[%emt 0:00:47] Threatening mate with Kh3.} Rxg2+ {[%emt 0:00:03]} 33. Kh3 {[%emt 0:00:09]} Rh2+ {[%emt 0:01:01]} 34. Kg3 {[%emt 0:00:05] White wants to mate with Rbb8.} Rcg2+ {[%emt 0:00:25]} 35. Kf4 {[%emt 0:00:05] White mates.} Rxb2 {[%emt 0:00:28]} 36. Rxf7 {[%emt 0:01:48]} Rh4+ {[%emt 0:00:19]} 37. Kf5 {[%emt 0:00:38] Weighted Error Value: White=0.15 (very precise) /Black=0.54} 1-0

[Event "European Women-ch 2023"]
[Site "Petrovac"]
[Date "2023.03.19"]
[Round "2.5"]
[White "Cyfka, Karina"]
[Black "Kubicka, Anna"]
[Result "1-0"]
[ECO "D00"]
[WhiteElo "2350"]
[BlackElo "2211"]
[Annotator "TA"]
[PlyCount "99"]
[EventDate "2023.03.15"]
[EventType "swiss"]
[EventCountry "MNE"]
[SourceTitle "playchess.com"]
[Source "ChessBase"]
[SourceQuality "1"]
[TimeControl "40/5400+30:1800+30"]

{[%evp 9,99,0,15,-8,-6,-18,14,-4,15,-2,18,0,4,0,0,-14,0,0,12,0,0,0,12,12,12,12,12,32,44,12,15,8,36,34,31,26,61,61,76,63,56,56,147,137,143,136,148,146,188,194,222,153,156,110,111,110,96,85,153,144,188,183,682,677,674,656,1255,1283,1921,1872,1653,1463,2011,1812,29958,5728,4802,8993,29975,29976,29989,29987,29987,29988,29988,29989,29989,29989,29990,29990,29991,29992]} 1. d4 {[%emt 0:00:03]} Nf6 {[%emt 0:00:08]} 2. Nc3 {[%emt 0:00:05]} d5 {[%emt 0:00:06]} 3. Bf4 {[%emt 0:00:06]} Bf5 {[%emt 0:02:25]} 4. e3 {[%emt 0:01:30]} e6 {[%emt 0:00:30]} 5. Bd3 {[%emt 0:09:54]} Bxd3 {[%emt 0:00:07]} 6. Qxd3 {[%emt 0:02:52] D00: 1 d4 d5: Unusual lines.} a6 {[%emt 0:01:11] Inhibits Qb5+.} 7. Nf3 {[%emt 0:05:27]} Bd6 {[%emt 0:00:24]} 8. O-O {[%emt 0:02:21] The position is equal.} O-O {[%emt 0:08:16]} 9. Rfe1 {[%emt 0:10:32]} Nc6 {[%emt 0:21:56] [#]} 10. a3 $146 {[%emt 0:01:51]} ({Predecessor:} 10. Bxd6 Qxd6 11. e4 dxe4 12. Nxe4 Qe7 13. Nxf6+ Qxf6 14. c3 h6 15. Ne5 Nxe5 16. dxe5 {½-½ Wolf,J (842)-Kramer,T Bad Soden U14 op 5th 2018 (5.24)}) 10... Ne7 {[%emt 0:05:36]} 11. Bxd6 {[%emt 0:13:36]} cxd6 {[%emt 0:01:54]} 12. e4 {[%emt 0:00:44]} dxe4 {[%emt 0:02:39]} 13. Nxe4 {[%emt 0:00:15]} Ng6 {[%emt 0:12:14]} 14. g3 {[%emt 0:02:37]} Nxe4 {[%emt 0:04:52]} 15. Rxe4 {[%emt 0:00:39]} d5 {[%emt 0:01:24]} 16. Re2 {[%emt 0:01:13]} Qb6 {[%emt 0:03:52]} 17. c3 {[%emt 0:00:38]} a5 {[%emt 0:03:12]} 18. h4 {[%emt 0:01:16]} Qa6 {[%emt 0:00:27]} 19. Qd2 {[%emt 0:05:32]} h6 {[%emt 0:01:14]} 20. Rae1 {[%emt 0:02:43]} Rfe8 {[%emt 0:07:03]} 21. h5 {[%emt 0:02:08]} Nf8 {[%emt 0:00:06]} 22. g4 {[%emt 0:06:14]} Nh7 {[%emt 0:01:41]} 23. g5 {[%emt 0:02:44]} Nxg5 {[%emt 0:02:09]} 24. Nxg5 {[%emt 0:00:06]} hxg5 {[%emt 0:00:03]} 25. Qxg5 {[%emt 0:00:13]} Qd3 {[%emt 0:00:58]} (25... Qd6 $1 $14) 26. Re3 {[%emt 0:03:25]} Qh7 {[%emt 0:09:08] [#]} 27. Qxd5 $3 {[%emt 0:01:09][%mdl 576] Pin} Red8 {[%emt 0:00:04]} (27... Qh6 28. Qb5) 28. Qg5 {[%emt 0:01:07] White is more active.} ({Resist} 28. Qxb7 Rab8 29. Qc7 Qxh5 $16) 28... Kh8 {[%emt 0:02:37]} 29. Kg2 {[%emt 0:02:22]} b6 {[%emt 0:02:25]} 30. Re4 {[%emt 0:02:26]} Rd7 {[%emt 0:00:49]} 31. c4 {[%emt 0:01:13]} (31. Qf4 $142) 31... Qh6 $16 {[%emt 0:01:20]} 32. Qxh6+ {[%emt 0:05:28]} gxh6 {[%emt 0:00:02][%mdl 4096] Endgame KRR-KRR} 33. Kf3 {[%emt 0:01:28]} Rg8 {[%emt 0:00:59] [#]} ({Black should try} 33... Rc8) 34. Ke3 $1 {[%emt 0:00:25]} Rg5 {[%emt 0:00:37] [#]} 35. Re5 $1 {[%emt 0:00:18] And now Rxg5 would win.} Kg7 $2 {[%emt 0:03:40]} (35... Rg4) 36. Rxg5+ $18 {[%emt 0:01:36]} hxg5 {[%emt 0:00:02] KR-KR} 37. c5 {[%emt 0:00:23][%cal Bc4c5,Bc5c6][%mdl 32]} e5 {[%emt 0:01:00]} 38. c6 {[%emt 0:01:45]} ({Weaker is} 38. dxe5 bxc5 39. f4 Kh6 $16) 38... exd4+ {[%emt 0:01:23]} 39. Kd3 {[%emt 0:00:04]} Rc7 {[%emt 0:00:05]} 40. Rc1 {[%emt 0:00:00]} ({Worse is} 40. Kxd4 Rxc6 41. Re5 Rd6+ 42. Ke4 Kh6 $17) 40... Kf6 {[%emt 0:00:00]} 41. Kxd4 {[%emt 0:08:24]} Ke6 {[%emt 0:04:08]} 42. h6 {[%emt 0:01:47][%cal Bh5h6,Bh6h7][%mdl 32] White threatens h7 and mate.} Rc8 {[%emt 0:15:58]} 43. c7 {[%emt 0:00:22]} f5 {[%emt 0:03:24]} 44. h7 {[%emt 0:01:02] White mates.} Kd7 {[%emt 0:00:04]} 45. Ke5 {[%emt 0:00:40]} Re8+ {[%emt 0:00:11]} 46. Kxf5 {[%emt 0:00:19]} Kc8 {[%emt 0:00:02]} 47. Kxg5 {[%emt 0:00:22]} b5 {[%emt 0:00:29]} 48. Kg6 {[%emt 0:00:25]} b4 {[%emt 0:00:26]} 49. axb4 {[%emt 0:00:05]} axb4 {[%emt 0:00:02]} 50. Kf7 {[%emt 0:00:10] A cool game by Cyfka.   Weighted Error Value: White=0.08 (flawless) /Black=0.54} 1-0

[Event "European Women-ch 2023"]
[Site "Petrovac"]
[Date "2023.03.19"]
[Round "2.5"]
[White "Richterova, Natasa"]
[Black "Ter-Avetisjana, Agnesa Stepania"]
[Result "1-0"]
[ECO "B12"]
[WhiteElo "2190"]
[BlackElo "1974"]
[Annotator "TA"]
[PlyCount "61"]
[EventDate "2023.03.15"]
[EventType "swiss"]
[EventCountry "MNE"]
[SourceTitle "playchess.com"]
[Source "ChessBase"]
[SourceQuality "1"]
[TimeControl "40/5400+30:1800+30"]

{[%evp 9,61,0,32,9,23,18,27,0,2,0,58,34,82,90,100,39,32,40,40,38,116,47,174,121,166,166,173,165,186,158,172,162,173,173,180,178,218,229,232,213,332,323,327,316,293,306,381,381,414,427,431,429,418,402]} 1. e4 {[%emt 0:00:34]} c6 {[%emt 0:00:33]} 2. d4 {[%emt 0:00:30]} d5 {[%emt 0:00:01]} 3. e5 {[%emt 0:00:06]} Bf5 {[%emt 0:02:19]} 4. h4 {[%emt 0:02:05]} h5 {[%emt 0:00:08]} 5. Be2 {[%emt 0:10:14]} g6 {[%emt 0:05:13]} 6. c4 {[%emt 0:04:20] B12: Caro-Kann: Advance Variation.} e6 {[%emt 0:02:24]} 7. Nc3 {[%emt 0:00:14]} Be7 {[%emt 0:03:20]} 8. Nf3 {[%emt 0:00:59] White has an edge.} Bg4 {[%emt 0:00:45]} 9. Qb3 {[%emt 0:12:45] [#]} b6 $146 {[%emt 0:10:24]} (9... Qb6 $11) ({Predecessor:} 9... Qb6 10. c5 Qc7 11. Bg5 Nd7 12. Bxe7 Nxe7 13. Ng5 Bxe2 14. Nxe2 b6 15. Qf3 Nf5 {0-1 Lazov,T (1798)-Georgievski,V (2273) Skopje Karposh op 2012 (8)}) 10. cxd5 {[%emt 0:00:53]} exd5 {[%emt 0:00:10]} (10... cxd5 $14 11. Be3 Nh6) 11. Ng5 $16 {[%emt 0:02:07]} Nh6 {[%emt 0:13:29]} 12. g3 {[%emt 0:14:46] White is much more active.} (12. Bxg4 $16 hxg4 13. Qd1) 12... Nf5 $14 {[%emt 0:07:32]} 13. Qd1 {[%emt 0:00:52]} Bxe2 {[%emt 0:00:10]} 14. Nxe2 {[%emt 0:00:25]} c5 {[%emt 0:07:56] Black is now going downhill.} (14... O-O $14) 15. O-O {[%emt 0:15:25]} (15. dxc5 $16 {aiming for e6.} Qd7 16. Nf4 Bxg5 17. hxg5) 15... O-O {[%emt 0:07:03]} (15... Nc6 $1 $14) 16. dxc5 {[%emt 0:07:19]} (16. e6 $18) 16... bxc5 {[%emt 0:01:53]} 17. e6 {[%emt 0:05:00]} Bxg5 {[%emt 0:02:29]} 18. exf7+ $1 {[%emt 0:00:05]} ({But not} 18. Bxg5 $6 f6 19. Be3 d4 $14) 18... Rxf7 {[%emt 0:00:12] And now ...Bf6 would win.} 19. Bxg5 {[%emt 0:00:05]} Qd6 {[%emt 0:02:10]} 20. Nf4 $1 {[%emt 0:03:50] Strongly threatening Re1.} Nd4 {[%emt 0:14:14] [#]} 21. b4 $1 {[%emt 0:01:45][%mdl 512]} Nbc6 {[%emt 0:00:07]} 22. bxc5 {[%emt 0:00:10]} Qxc5 {[%emt 0:01:52]} 23. Nxg6 {[%emt 0:01:09]} Nf3+ {[%emt 0:01:57] [#]} 24. Kg2 $1 {[%emt 0:00:01][%cal Bg1g2,Bg2f3,Bf3e4][%mdl 32]} d4 {[%emt 0:07:19] [#]} (24... Ncd4 $142 25. Rc1 Qd6) 25. Bf4 $1 $18 {[%emt 0:01:10]} Qd5 {[%emt 0:00:17] ( -> ...Ne1+)} 26. Qxf3 {[%emt 0:00:12]} Qxf3+ {[%emt 0:00:05]} 27. Kxf3 {[%emt 0:00:08]} Kg7 {[%emt 0:00:07] Wards off Rac1} 28. Rac1 {[%emt 0:05:53]} Rc8 {[%emt 0:01:41] [#]} 29. Rxc6 $1 {[%emt 0:08:42]} Rxc6 {[%emt 0:00:02]} 30. Ne5 {[%emt 0:00:05][%csl LRc6,LRf7]} Rc3+ {[%emt 0:00:10]} 31. Ke4 {[%emt 0:00:07] Weighted Error Value: White=0.12 (very precise) /Black=0.34} 1-0

[Event "European Women-ch 2023"]
[Site "Petrovac"]
[Date "2023.03.19"]
[Round "2.6"]
[White "Badelka, Olga"]
[Black "Kulon, Klaudia"]
[Result "1-0"]
[ECO "B01"]
[WhiteElo "2428"]
[BlackElo "2290"]
[Annotator "TA"]
[PlyCount "86"]
[EventDate "2023.03.15"]
[EventType "swiss"]
[EventCountry "MNE"]
[SourceTitle "playchess.com"]
[Source "ChessBase"]
[SourceQuality "1"]
[TimeControl "40/5400+30:1800+30"]

{[%evp 9,86,42,60,60,48,41,49,55,42,33,40,10,18,0,-2,-44,-33,-25,-28,-66,-71,-131,-83,-169,-130,-123,-122,-136,-148,-158,-156,-152,-163,-171,-125,-129,-109,-125,-105,-110,-85,-86,-74,-116,-44,-35,-33,-47,-40,-49,0,0,18,0,546,547,553,557,555,545,518,412,603,432,593,590,1662,1573,6018,5437,29990,1043,29987,29984,29981,29981,29989,29990,29991]} 1. e4 {[%emt 0:00:04]} d5 {[%emt 0:00:04]} 2. exd5 {[%emt 0:00:06]} Qxd5 {[%emt 0:00:05]} 3. Nc3 {[%emt 0:00:06]} Qd8 {[%emt 0:00:09]} 4. d4 {[%emt 0:00:17]} Nf6 {[%emt 0:00:07]} 5. Nf3 {[%emt 0:00:48]} g6 {[%emt 0:00:06]} 6. Bc4 {[%emt 0:00:45] B01: Scandinavian Defence.} Bg7 {[%emt 0:00:07]} 7. O-O {[%emt 0:00:26]} O-O {[%emt 0:00:20]} 8. Re1 {[%emt 0:00:24] White is slightly better.} Nc6 {[%emt 0:02:34]} 9. h3 {[%emt 0:11:26] Prevents Bg4.} b6 {[%emt 0:00:33]} 10. a3 {[%emt 0:08:30]} Bb7 {[%emt 0:04:54] [#]} 11. b4 $146 {[%emt 0:00:31]} ({Predecessor:} 11. Bg5 h6 12. Be3 e6 13. Qe2 a6 14. Rad1 Ne7 15. Bf4 Kh7 16. Bd3 Nf5 17. Be5 {½-½ Barski,R (2456)-Kulon,K (2328) Figueira da Foz op 15th 2021 (9)}) 11... e6 {[%emt 0:01:51]} 12. Bf4 {[%emt 0:03:03]} Ne7 {[%emt 0:02:46]} 13. Be5 {[%emt 0:03:22]} Nf5 {[%emt 0:05:27]} 14. Nb5 {[%emt 0:09:00]} Nd5 {[%emt 0:07:20]} 15. a4 {[%emt 0:20:32]} (15. Qd2 $142) 15... a6 {[%emt 0:09:04]} (15... Nxb4 $142 {...Bxf3 would be deadly.} 16. Bxg7 Kxg7) 16. Na3 {[%emt 0:02:05]} (16. Bxd5 $17 {is a better defense.} Bxd5 17. Na3) 16... Nxb4 {[%emt 0:02:14]} 17. c3 {[%emt 0:00:17]} Nd5 {[%emt 0:03:02]} 18. Qd2 {[%emt 0:00:13]} Bh6 {[%emt 0:07:09]} 19. Qd3 {[%emt 0:00:54]} Nf4 {[%emt 0:00:57]} 20. Bxf4 {[%emt 0:00:04]} Bxf4 {[%emt 0:00:03]} 21. Nc2 {[%emt 0:05:58][%cal Ba3c2,Bc2e3,Be3g4][%mdl 32]} Qf6 {[%emt 0:11:57]} (21... c5 $19 22. dxc5 bxc5) 22. Qe2 $17 {[%emt 0:02:12]} Rfd8 {[%emt 0:03:53]} 23. Rab1 {[%emt 0:01:33]} Bc6 {[%emt 0:02:54]} 24. Ne3 {[%emt 0:09:38]} Bxa4 {[%emt 0:12:54] This pair of bishops is nice.} 25. Ng4 {[%emt 0:00:07]} Qe7 {[%emt 0:00:38]} 26. Bxa6 {[%emt 0:00:50]} c5 {[%emt 0:07:06]} (26... Bc6 $17 {[%cal Oa8a6] Hoping for ...Rxa6!} 27. Ra1 Bd5) 27. g3 $15 {[%emt 0:11:54]} Bc7 {[%emt 0:01:02] aiming for ...h5.} 28. Bb7 {[%emt 0:03:58]} Rab8 {[%emt 0:01:51]} 29. Be4 {[%emt 0:00:05]} Ng7 {[%emt 0:05:13]} (29... Nd6 $15 30. Bd3 h5) 30. Ra1 $11 {[%emt 0:01:19]} Be8 {[%emt 0:02:01]} 31. Ra7 $36 {[%emt 0:01:22][%mdl 2048] White is more active.} h5 $2 {[%emt 0:01:32][%mdl 8192] [#]} (31... Rbc8 $11) 32. Rxc7 $1 $18 {[%emt 0:02:45][%mdl 576] Deflection} Qxc7 {[%emt 0:00:02]} 33. Nf6+ {[%emt 0:00:05]} Kf8 {[%emt 0:00:53]} 34. Qe3 {[%emt 0:00:15] Threatens to win with Qh6.} cxd4 {[%emt 0:02:33]} 35. Qh6 {[%emt 0:00:36]} dxc3 {[%emt 0:00:27]} (35... d3 $142) 36. Qh8+ {[%emt 0:00:32][%mdl 64] Deflection} Ke7 {[%emt 0:00:01]} 37. Qxg7 {[%emt 0:00:02]} Bc6 {[%emt 0:02:43]} 38. Ng5 {[%emt 0:00:50]} Kd6 {[%emt 0:00:43]} 39. Nxf7+ {[%emt 0:00:42]} Kc5 {[%emt 0:00:01]} 40. Bxc6 {[%emt 0:00:00]} (40. Nd7+ $142 Kc4 41. Rc1 e5 42. Nfxe5+ Kb5 43. Bxc6+ Qxc6 44. Rb1+ {[%mdl 64] Deflection} Ka4 45. Nxc6 Rxd7 46. Qxd7 Rb7 47. Qxb7 g5 48. Qa8#) 40... Qxc6 {[%emt 0:00:00]} 41. Nxd8 {[%emt 0:02:23] White mates.} Rxd8 {[%emt 0:03:40]} 42. Qe7+ {[%emt 0:00:07]} Rd6 {[%emt 0:00:21]} 43. Ne4+ {[%emt 0:00:05][%mdl 64] Pin, Double Attack} Kd5 {[%emt 0:00:06] Quite a comeback for White. A cool game by Badelka.   Weighted Error Value: White=0.16 (very precise) /Black=0.66} 1-0

[Event "European Women-ch 2023"]
[Site "Petrovac"]
[Date "2023.03.19"]
[Round "2.6"]
[White "Brunello, Marina"]
[Black "Ibrahimova, Sabina"]
[Result "1-0"]
[ECO "B36"]
[WhiteElo "2346"]
[BlackElo "2207"]
[Annotator "TA"]
[PlyCount "113"]
[EventDate "2023.03.15"]
[EventType "swiss"]
[EventCountry "MNE"]
[SourceTitle "playchess.com"]
[Source "ChessBase"]
[SourceQuality "1"]
[TimeControl "40/5400+30:1800+30"]

{[%evp 18,113,42,26,48,21,35,-20,-22,-31,-26,-28,-16,-19,-25,-27,-25,-29,-16,-22,-19,-24,-27,-27,-20,-27,-22,-30,-15,-16,0,0,0,0,3,0,10,20,74,38,148,25,29,34,30,22,27,26,63,56,79,45,68,66,85,75,156,133,156,148,143,104,117,126,172,166,170,165,165,170,116,110,213,132,170,172,244,206,395,391,389,356,384,382,545,545,497,426,1418,1332,12842,12843,12845,12846,29989,29990,29990,29991]} 1. e4 {[%emt 0:00:04]} c5 {[%emt 0:00:16]} 2. Nf3 {[%emt 0:00:07]} Nc6 {[%emt 0:00:10]} 3. d4 {[%emt 0:00:06]} cxd4 {[%emt 0:00:12]} 4. Nxd4 {[%emt 0:00:05]} g6 {[%emt 0:00:26]} 5. c4 {[%emt 0:00:07]} Nf6 {[%emt 0:00:22]} 6. Nc3 {[%emt 0:00:09]} d6 {[%emt 0:00:14]} 7. Be2 {[%emt 0:01:04]} Nxd4 {[%emt 0:00:14]} 8. Qxd4 {[%emt 0:00:06]} Bg7 {[%emt 0:00:11]} 9. Be3 {[%emt 0:00:55]} O-O {[%emt 0:00:23]} 10. Qd2 {[%emt 0:00:07]} a5 {[%emt 0:00:24] is now debated instead of 10...Be6. B36: Sicilian: Maroczy Bind: Gurgenidze System.} 11. f3 {[%emt 0:02:02]} a4 {[%emt 0:01:33] [#]} 12. Nb5 $146 {[%emt 0:12:01] [#]} (12. Kf2 $14) ({Predecessor:} 12. Kf2 Be6 13. Rac1 Nd7 14. Rhd1 Re8 15. Nd5 Nc5 16. Rb1 f5 17. exf5 Bxf5 18. Rbc1 {0-1 Izoria,Z (2602)-Xiong,J (2700) Speed Chess GP2 blitz 2021 (9)}) 12... a3 $1 $11 {[%emt 0:05:03] The position is equal.} 13. Bd4 {[%emt 0:05:49]} (13. bxa3 $2 {is the wrong capture.} Nxe4 14. Qc1 Bxa1 15. Qxa1 Nf6 $19) 13... axb2 {[%emt 0:02:35]} 14. Qxb2 {[%emt 0:00:16]} Nh5 {[%emt 0:06:54]} 15. O-O {[%emt 0:03:36]} Bxd4+ {[%emt 0:10:21]} 16. Qxd4 {[%emt 0:00:09]} Nf4 {[%emt 0:00:33]} 17. Bd1 {[%emt 0:01:06]} Ra6 {[%emt 0:12:58]} 18. Kh1 {[%emt 0:06:44]} Bd7 {[%emt 0:07:12]} 19. Bb3 {[%emt 0:09:25]} Ne6 {[%emt 0:06:12]} 20. Qd2 {[%emt 0:03:51]} Qa5 {[%emt 0:01:43]} 21. Nc3 {[%emt 0:00:14]} Nc5 {[%emt 0:07:55]} 22. Rad1 {[%emt 0:00:07]} Rc8 {[%emt 0:02:51]} 23. Qd4 {[%emt 0:13:41]} Ne6 {[%emt 0:08:23]} 24. Qe3 {[%emt 0:02:09]} Qc5 {[%emt 0:00:39]} 25. Qd2 {[%emt 0:00:00]} Qb4 {[%emt 0:07:51]} 26. f4 {[%emt 0:09:22][%cal Bf3f4,Bf4f5][%mdl 32] aiming for f5.} Nc5 {[%emt 0:06:33]} 27. f5 {[%emt 0:01:01]} Nxb3 {[%emt 0:01:07]} (27... Bc6 $11) 28. axb3 $16 {[%emt 0:00:13] Strongly threatening Rc1.} Ra5 {[%emt 0:00:48]} (28... Qxb3 $2 29. Nd5 Qxc4 30. Qh6 $18) ({Black should try} 28... Ra3 $14) 29. Nd5 {[%emt 0:09:02]} (29. Rf3 $16 Rca8 30. Qh6) 29... Qxd2 $11 {[%emt 0:01:03]} 30. Rxd2 {[%emt 0:00:04]} Kf8 {[%emt 0:03:38]} 31. f6 {[%emt 0:00:18]} exf6 {[%emt 0:00:40]} 32. Nxf6 {[%emt 0:00:51]} Bc6 {[%emt 0:02:12]} 33. Rxd6 {[%emt 0:01:15] White has more active pieces.} Ke7 {[%emt 0:00:52]} 34. Rd3 {[%emt 0:04:39]} Re5 {[%emt 0:02:52]} 35. Nd5+ {[%emt 0:02:11]} ({Don't play} 35. Nxh7 Bxe4 36. Rd2 b5 $11) 35... Bxd5 {[%emt 0:00:13]} 36. exd5 $14 {[%emt 0:00:08][%mdl 4096] Endgame KRR-KRR} Rd8 {[%emt 0:01:06]} ({Black should play} 36... f5) 37. Kg1 {[%emt 0:00:25]} f5 {[%emt 0:00:24]} 38. Kf2 {[%emt 0:02:07]} Ra8 {[%emt 0:00:26]} 39. Rd2 {[%emt 0:00:39]} Ra3 {[%emt 0:00:22]} 40. Rb1 {[%emt 0:00:00]} Kd6 {[%emt 0:00:00]} (40... Re4 $16) 41. b4 $18 {[%emt 0:13:03]} Rc3 {[%emt 0:07:07]} 42. c5+ {[%emt 0:00:10]} Kd7 {[%emt 0:00:16]} 43. Re1 {[%emt 0:06:24]} Rxe1 {[%emt 0:08:08]} 44. Kxe1 {[%emt 0:00:04] KR-KR} Rc4 {[%emt 0:00:48]} (44... Rb3 $16 {might work better.}) 45. Rb2 {[%emt 0:00:11] Ke2 would be deadly.} Re4+ {[%emt 0:04:02]} 46. Kf2 {[%emt 0:00:15]} Rd4 {[%emt 0:00:22] [#]} (46... Kc8 $142 47. d6 h6) 47. d6 $1 {[%emt 0:00:11] And now Ke3 would win.} Kc6 $2 {[%emt 0:04:01]} (47... b6 48. Rc2 (48. cxb6 Rxd6 49. b5 Rxb6 $11) 48... bxc5) 48. Ke1 {[%emt 0:09:44]} Kd7 {[%emt 0:07:52]} 49. Ke2 {[%emt 0:04:23]} f4 {[%emt 0:01:35]} 50. Kf3 {[%emt 0:00:50]} h5 {[%emt 0:01:27]} (50... Kd8 {keeps fighting.} 51. Kg4 h6) 51. h4 {[%emt 0:00:42]} Kc6 {[%emt 0:00:32]} 52. Rb1 {[%emt 0:01:45]} b6 {[%emt 0:00:59] [#]} (52... Kd7 $142 53. Re1 Rxb4 54. Re7+ Kd8) 53. Rc1 $1 {[%emt 0:01:25][%cal Ob4b5] Threatens to win with b5+!} Rxb4 {[%emt 0:00:48]} 54. Rd1 {[%emt 0:00:11] White wants to mate with d7.} Kd7 {[%emt 0:00:51] [#]} 55. c6+ $1 {[%emt 0:00:04][%cal Bc5c6,Bc6c7][%mdl 544]} Kd8 {[%emt 0:00:06]} (55... Kxc6 56. d7) 56. c7+ {[%emt 0:00:17]} Kd7 {[%emt 0:00:27]} 57. Rc1 {[%emt 0:00:04] Weighted Error Value: White=0.13 (very precise) /Black=0.39} 1-0